bitfinex/quotes_BTCUSD_20240605
["timestamp","ask_amount","ask_price","bid_price","bid_amount"]
[1717551659411,0.83786893,71132.0,71131.0,0.014471]
[1717551659909,0.83786893,71132.0,71131.0,0.009471]
[1717551659910,0.83686893,71132.0,71131.0,0.009471]
[1717551660341,0.83686893,71132.0,71131.0,0.011471]
[1717551661329,0.83686893,71132.0,71131.0,0.009471]
[1717551661558,0.28500193,71132.0,71131.0,0.009471]
[1717551661775,0.28500193,71132.0,71131.0,0.561271]
[1717551661776,0.14441893,71132.0,71131.0,0.561271]
[1717551662406,0.140549,71150.0,71148.0,0.32]
[1717551662624,0.08256207,71154.0,71150.0,0.22]
[1717551662625,0.22310307,71154.0,71150.0,0.22]
[1717551662842,0.1,71189.0,71144.0,0.1707]
[1717551662843,0.140533,71158.0,71157.0,0.22]
[1717551663059,0.281014,71171.0,71159.0,0.22]
[1717551663060,0.140524,71162.0,71159.0,0.22]
[1717551663288,0.140524,71162.0,71159.0,0.1]
[1717551664194,0.00086,71168.0,71164.0,0.1]
[1717551664195,0.140516,71166.0,71164.0,0.1]
[1717551664613,0.140516,71166.0,71165.0,0.3787]
[1717551664816,0.140516,71166.0,71165.0,0.1587]
[1717551666065,0.141516,71166.0,71165.0,0.1587]
[1717551666514,0.142516,71166.0,71165.0,0.1637]
[1717551667218,0.141516,71166.0,71165.0,0.1587]
[1717551667365,0.142516,71166.0,71165.0,0.1637]
[1717551669004,0.81566793,71166.0,71165.0,0.005]
[1717551669206,1.21970093,71166.0,71165.0,0.005]
[1717551669826,0.14054,71154.0,71153.0,0.1]
[1717551670033,0.28495893,71154.0,71153.0,0.1]
[1717551670236,0.140546,71151.0,71150.0,0.1]
[1717551670474,0.14441893,71151.0,71150.0,0.32]
[1717551672471,0.14441893,71151.0,71150.0,0.5658]
[1717551673032,0.14541893,71151.0,71150.0,0.5658]
[1717551673278,0.14541893,71151.0,71150.0,0.5708]
[1717551673692,0.14441893,71151.0,71150.0,0.1]
[1717551673912,0.28496493,71151.0,71150.0,0.1]
[1717551674117,0.28496493,71151.0,71150.0,0.105]
[1717551674118,0.28596493,71151.0,71150.0,0.105]
[1717551674335,0.30896493,71151.0,71150.0,0.105]
[1717551674749,0.30896493,71151.0,71150.0,0.1]
[1717551675222,0.30796493,71151.0,71150.0,0.1]
[1717551675440,0.31511893,71151.0,71144.0,0.1]
[1717551675663,0.28497693,71145.0,71144.0,0.1]
[1717551675877,0.28497693,71145.0,71142.0,0.01432029]
[1717551675878,0.421684,71143.0,71142.0,0.01432029]
[1717551676092,0.140583,71132.0,71131.0,0.009471]
[1717551676311,0.28500193,71132.0,71131.0,0.009471]
[1717551676774,0.28500193,71132.0,71131.0,0.109471]
[1717551677437,0.28500193,71132.0,71131.0,0.009471]
[1717551677696,0.56616893,71132.0,71131.0,0.009471]
[1717551677936,0.59016893,71132.0,71131.0,0.014471]
[1717551678866,0.59116893,71132.0,71131.0,0.014471]
[1717551679597,0.73786893,71132.0,71131.0,0.009471]
[1717551679836,0.73886893,71132.0,71131.0,0.014471]
[1717551680062,0.89706893,71132.0,71131.0,0.014471]
[1717551681958,0.73886893,71132.0,71131.0,0.014471]
[1717551682165,0.73786893,71132.0,71131.0,0.014471]
[1717551682397,0.73786893,71132.0,71131.0,0.009471]
[1717551682598,0.73669974,71132.0,71131.0,0.009471]
[1717551682799,0.73669974,71132.0,71131.0,0.014471]
[1717551682800,0.73869974,71132.0,71131.0,0.014471]
[1717551682970,0.73769974,71132.0,71131.0,0.014471]
[1717551683190,0.73769974,71132.0,71131.0,0.009471]
[1717551683675,0.73769974,71132.0,71131.0,0.014471]
[1717551684179,0.73769974,71132.0,71131.0,0.009471]
[1717551684409,0.73869974,71132.0,71131.0,0.014471]
[1717551684626,0.73969974,71132.0,71131.0,0.014471]
[1717551685915,0.43553274,71132.0,71131.0,0.014471]
[1717551686540,0.28783274,71132.0,71131.0,0.234471]
[1717551686837,0.28783274,71132.0,71131.0,0.396571]
[1717551687059,0.28583274,71132.0,71131.0,0.176571]
[1717551687247,0.28483274,71132.0,71131.0,0.171571]
[1717551687490,0.28583274,71132.0,71131.0,0.176571]
[1717551687698,0.28683274,71132.0,71131.0,0.176571]
[1717551688760,0.28583274,71132.0,71131.0,0.171571]
[1717551689178,0.28683274,71132.0,71131.0,0.396571]
[1717551689809,0.14641893,71132.0,71131.0,0.396571]
[1717551690190,0.28700193,71132.0,71131.0,0.396571]
[1717551691497,0.14641893,71132.0,71131.0,0.496571]
[1717551692192,0.002,71132.0,71131.0,0.730056]
[1717551692391,0.002,71132.0,71131.0,0.720056]
[1717551693048,0.001,71132.0,71131.0,0.715056]
[1717551693264,0.002,71132.0,71131.0,0.720056]
[1717551693468,0.001,71132.0,71131.0,0.720056]
[1717551693678,0.002,71132.0,71131.0,0.730056]
[1717551694088,0.002,71132.0,71131.0,0.720056]
[1717551698387,0.14641893,71132.0,71131.0,0.720056]
[1717551700301,0.28700193,71132.0,71131.0,0.114471]
[1717551700517,0.73886893,71132.0,71131.0,0.014471]
[1717551701160,0.81486893,71132.0,71131.0,0.014471]
[1717551701364,0.96586893,71132.0,71131.0,0.009471]
[1717551701575,0.96686893,71132.0,71131.0,0.020471]
[1717551701754,0.96786893,71132.0,71131.0,0.023471]
[1717551702206,0.96686893,71132.0,71131.0,0.013471]
[1717551702601,0.96686893,71132.0,71131.0,0.018471]
[1717551702817,1.24803593,71132.0,71131.0,0.018471]
[1717551703656,1.34803593,71132.0,71131.0,0.018471]
[1717551704280,1.06686893,71132.0,71131.0,0.018471]
[1717551704943,0.78570193,71132.0,71131.0,0.018471]
[1717551705354,0.14541893,71132.0,71131.0,0.018471]
[1717551705814,0.28600193,71132.0,71131.0,0.018471]
[1717551706041,0.14541893,71132.0,71131.0,0.018471]
[1717551706253,0.14541893,71132.0,71131.0,0.338471]
[1717551706467,0.14541893,71132.0,71131.0,0.118471]
[1717551707329,0.14541893,71132.0,71131.0,0.338471]
[1717551707544,0.14541893,71132.0,71131.0,0.118471]
[1717551708175,0.14541893,71132.0,71131.0,0.338471]
[1717551708586,0.14541893,71132.0,71131.0,0.118471]
[1717551709219,0.14541893,71132.0,71131.0,0.338471]
[1717551711213,0.14541893,71132.0,71131.0,0.579271]
[1717551711421,0.001,71132.0,71131.0,0.729856]
[1717551712527,0.001,71132.0,71131.0,0.77712548]
[1717551712746,0.001,71132.0,71131.0,0.737856]
[1717551713366,0.001,71132.0,71131.0,0.80012724]
[1717551713571,0.001,71132.0,71131.0,0.737856]
[1717551713782,0.01716629,71146.0,71145.0,0.22]
[1717551713986,0.16158522,71146.0,71145.0,0.22]
[1717551714230,0.14441893,71146.0,71145.0,0.22]
[1717551715288,0.14441893,71146.0,71145.0,0.232]
[1717551715289,0.14541893,71146.0,71145.0,0.232]
[1717551715502,0.14541893,71146.0,71145.0,0.495]
[1717551715713,0.14541893,71146.0,71145.0,0.5702]
[1717551715888,0.14541893,71146.0,71145.0,8.5702]
[1717551722063,0.14541893,71146.0,71145.0,8.86170509]
[1717551722574,0.14541893,71146.0,71145.0,8.345]
[1717551723039,0.14541893,71146.0,71145.0,8.125]
[1717551723255,0.14541893,71146.0,71145.0,8.345]
[1717551723706,0.28597493,71146.0,71145.0,8.125]
[1717551723948,0.52597493,71146.0,71145.0,8.125]
[1717551727361,0.67367493,71146.0,71145.0,8.125]
[1717551727576,0.28597493,71146.0,71145.0,8.125]
[1717551729553,0.81478693,71146.0,71145.0,8.025]
[1717551729770,0.83778693,71146.0,71145.0,8.125]
[1717551730228,0.86218454,71146.0,71145.0,8.125]
[1717551730435,0.97328693,71146.0,71145.0,8.025]
[1717551730658,0.97328693,71146.0,71145.0,8.125]
[1717551730872,0.97328693,71146.0,71145.0,8.025]
[1717551731087,0.97228693,71146.0,71145.0,8.113]
[1717551731316,0.69217493,71146.0,71145.0,8.125]
[1717551731529,0.52147493,71146.0,71145.0,8.125]
[1717551731735,0.52047493,71146.0,71145.0,8.113]
[1717551731945,0.52147493,71146.0,71145.0,8.125]
[1717551732151,0.52147493,71146.0,71145.0,8.112]
[1717551732374,0.52147493,71146.0,71145.0,8.125]
[1717551733135,0.28597493,71146.0,71145.0,8.332]
[1717551733355,0.14541893,71146.0,71145.0,8.345]
[1717551733571,0.14541893,71146.0,71145.0,8.5069]
[1717551736051,0.14541893,71146.0,71145.0,8.657458]
[1717551736471,0.14541893,71146.0,71145.0,8.68906064]
[1717551736712,0.14541893,71146.0,71145.0,8.69906064]
[1717551736892,0.14541893,71146.0,71145.0,8.657458]
[1717551737695,0.14541893,71146.0,71145.0,8.5069]
[1717551738806,0.14541893,71146.0,71145.0,8.5169]
[1717551739409,0.14541893,71146.0,71145.0,8.55848113]
[1717551739606,0.14541893,71146.0,71145.0,8.657458]
[1717551739815,0.14541893,71146.0,71145.0,8.74062348]
[1717551740056,0.14541893,71146.0,71145.0,8.657458]
[1717551740467,0.14541893,71146.0,71145.0,8.71981166]
[1717551740861,0.14541893,71146.0,71145.0,8.70781166]
[1717551740862,0.14441893,71146.0,71145.0,8.70781166]
[1717551741340,0.14441893,71146.0,71145.0,8.72181166]
[1717551741753,0.14441893,71146.0,71145.0,8.70881166]
[1717551741965,0.14441893,71146.0,71145.0,8.660458]
[1717551742574,0.14441893,71146.0,71145.0,8.646458]
[1717551742794,0.14441893,71146.0,71145.0,8.67089864]
[1717551743027,0.14441893,71146.0,71145.0,8.74362348]
[1717551743245,0.14441893,71146.0,71145.0,8.75406061]
[1717551743833,0.14441893,71146.0,71145.0,8.74362348]
[1717551744242,0.14441893,71146.0,71145.0,8.75406044]
[1717551744653,0.140529,71160.0,71159.0,0.32]
[1717551744810,0.28494793,71160.0,71159.0,0.32]
[1717551745894,0.28494793,71160.0,71159.0,0.326]
[1717551746214,0.14441893,71160.0,71159.0,0.326]
[1717551749353,0.14527893,71160.0,71159.0,0.326]
[1717551749960,0.14527893,71160.0,71159.0,0.106]
[1717551750167,0.14527893,71160.0,71159.0,0.326]
[1717551750359,0.28580693,71160.0,71159.0,0.326]
[1717551752198,0.28580693,71160.0,71159.0,0.306]
[1717551752406,0.28580693,71160.0,71159.0,0.326]
[1717551753876,0.28580693,71160.0,71159.0,0.106]
[1717551754089,0.28580693,71160.0,71159.0,0.306]
[1717551754294,0.28580693,71160.0,71159.0,0.326]
[1717551755981,0.28580693,71160.0,71159.0,0.106]
[1717551757045,0.28580693,71160.0,71159.0,0.326]
[1717551761392,0.28580693,71160.0,71159.0,0.106]
[1717551761809,0.28580693,71160.0,71159.0,0.306]
[1717551762904,0.28580693,71160.0,71159.0,0.106]
[1717551764942,0.58986293,71160.0,71159.0,0.106]
[1717551765154,1.04239117,71160.0,71159.0,0.106]
[1717551765377,1.04239117,71160.0,71159.0,0.006]
[1717551766465,1.42344717,71160.0,71159.0,0.006]
[1717551767574,1.35121893,71160.0,71159.0,0.006]
[1717551771990,1.63227493,71160.0,71159.0,0.006]
[1717551775172,1.64875021,71160.0,71159.0,0.006]
[1717551777196,1.74875021,71160.0,71159.0,0.006]
[1717551780835,0.80275,71149.0,71148.0,0.1]
[1717551781043,0.1477,71147.0,71146.0,0.1]
[1717551781252,0.421668,71146.0,71145.0,8.1]
[1717551781464,0.58908693,71146.0,71145.0,8.1]
[1717551781674,1.01789893,71146.0,71145.0,8.1]
[1717551782734,1.01789893,71146.0,71145.0,8.112]
[1717551783186,1.01789893,71146.0,71145.0,8.1]
[1717551783364,1.01789893,71146.0,71145.0,8.11]
[1717551783566,1.01789893,71146.0,71145.0,8.021]
[1717551783921,1.01789893,71146.0,71145.0,8.121]
[1717551784123,1.01789893,71146.0,71145.0,8.01]
[1717551784324,1.01889893,71146.0,71145.0,8.122]
[1717551784771,1.01889893,71146.0,71145.0,8.112]
[1717551784979,1.01889893,71146.0,71145.0,8.012]
[1717551785183,1.01989893,71146.0,71145.0,8.122]
[1717551785822,1.01889893,71146.0,71145.0,8.11]
[1717551785971,1.01889893,71146.0,71145.0,8.021]
[1717551786183,1.01889893,71146.0,71145.0,8.121]
[1717551786555,1.01889893,71146.0,71145.0,8.11]
[1717551786877,1.01889893,71146.0,71145.0,8.121]
[1717551787845,0.73778693,71146.0,71145.0,8.021]
[1717551788318,0.73778693,71146.0,71145.0,8.121]
[1717551788489,0.83778693,71146.0,71145.0,8.121]
[1717551788690,0.83778693,71146.0,71145.0,8.021]
[1717551788899,0.83778693,71146.0,71145.0,8.121]
[1717551789061,1.11889893,71146.0,71145.0,8.121]
[1717551789261,1.11889893,71146.0,71145.0,8.021]
[1717551789491,1.63621093,71146.0,71145.0,8.021]
[1717551789710,1.73621093,71146.0,71145.0,8.021]
[1717551790135,1.75302907,71146.0,71145.0,8.01]
[1717551790342,1.75302907,71146.0,71145.0,7.98842199]
[1717551790953,1.75302907,71146.0,71145.0,7.99942199]
[1717551791359,1.75202907,71146.0,71145.0,7.98942199]
[1717551791558,1.75202907,71146.0,71145.0,7.99042199]
[1717551791880,1.75202907,71146.0,71145.0,7.98942199]
[1717551791881,1.75802907,71146.0,71145.0,7.98942199]
[1717551792358,1.75802907,71146.0,71145.0,7.99042199]
[1717551792359,1.76402907,71146.0,71145.0,7.99042199]
[1717551792898,1.76402907,71146.0,71145.0,7.96625114]
[1717551793496,1.76902907,71146.0,71145.0,7.96725114]
[1717551794955,1.76902907,71146.0,71145.0,7.93827527]
[1717551795359,2.06951829,71146.0,71145.0,7.81241279]
[1717551795597,2.06951829,71146.0,71145.0,7.77751003]
[1717551796406,2.06951829,71146.0,71145.0,7.76151003]
[1717551796816,2.06951829,71146.0,71145.0,7.74551003]
[1717551797990,1.85670629,71146.0,71145.0,7.74551003]
[1717551798363,1.50982907,71146.0,71145.0,7.74551003]
[1717551798802,1.40982907,71146.0,71145.0,7.74551003]
[1717551799379,1.40482907,71146.0,71145.0,7.74451003]
[1717551799539,1.39282907,71146.0,71145.0,7.74351003]
[1717551799736,1.39682907,71146.0,71145.0,7.74451003]
[1717551799997,1.39682907,71146.0,71145.0,7.75251003]
[1717551800153,1.51582907,71146.0,71145.0,7.75151003]
[1717551800368,1.58412907,71146.0,71145.0,7.75151003]
[1717551800573,1.58412907,71146.0,71145.0,7.75551003]
[1717551801224,1.58412907,71146.0,71145.0,7.74751003]
[1717551801433,1.81862907,71146.0,71145.0,7.74751003]
[1717551801638,1.81862907,71146.0,71145.0,7.74951003]
[1717551801847,1.81862907,71146.0,71145.0,7.73064184]
[1717551802079,1.81862907,71146.0,71145.0,7.72664184]
[1717551802287,1.83762345,71146.0,71145.0,7.72464184]
[1717551802499,1.83762345,71146.0,71145.0,7.73164184]
[1717551802708,1.83762345,71146.0,71145.0,7.72164184]
[1717551802903,1.83762345,71146.0,71145.0,7.72264184]
[1717551802904,1.84162345,71146.0,71145.0,7.72264184]
[1717551803146,1.83762345,71146.0,71145.0,7.68564184]
[1717551803358,1.84162345,71146.0,71145.0,7.67164184]
[1717551803563,2.12273545,71146.0,71145.0,7.64264184]
[1717551803827,1.84162345,71146.0,71145.0,7.64264184]
[1717551804020,2.37045332,71146.0,71145.0,6.47263565]
[1717551804218,2.37045332,71146.0,71145.0,0.87142309]
[1717551804219,2.56311102,71146.0,71145.0,0.87142309]
[1717551804453,0.528934,71115.0,71111.0,0.002]
[1717551804569,0.76288266,71115.0,71111.0,0.002]
[1717551805639,1.05477093,71115.0,71111.0,0.002]
[1717551805841,0.669569,71112.0,71111.0,0.002]
[1717551806051,1.19523393,71112.0,71111.0,0.002]
[1717551806473,1.26132065,71112.0,71111.0,0.002]
[1717551807286,1.21823393,71112.0,71111.0,0.002]
[1717551808364,1.23223393,71112.0,71111.0,0.002]
[1717551808555,1.51347993,71112.0,71111.0,0.002]
[1717551808785,1.52747993,71112.0,71111.0,0.002]
[1717551808970,1.51347993,71112.0,71111.0,0.002]
[1717551809572,1.52747993,71112.0,71111.0,0.002]
[1717551809999,1.51347993,71112.0,71111.0,0.002]
[1717551810413,1.49947993,71112.0,71111.0,0.002]
[1717551811413,1.51347993,71112.0,71111.0,0.002]
[1717551811871,1.51347993,71112.0,71111.0,0.003]
[1717551812048,1.52747993,71112.0,71111.0,0.003]
[1717551813972,0.669633,71101.0,71100.0,0.009471]
[1717551814178,0.93705193,71101.0,71100.0,0.009471]
[1717551814396,1.21834093,71101.0,71100.0,0.009471]
[1717551818068,1.61622993,71101.0,71100.0,0.012471]
[1717551818384,1.58122993,71101.0,71100.0,0.011471]
[1717551818602,0.950962,71097.0,71096.0,0.00948199]
[1717551818884,1.21838093,71097.0,71096.0,0.00948199]
[1717551819097,1.49968593,71097.0,71096.0,0.00948199]
[1717551819311,0.803312,71092.0,71091.0,0.002]
[1717551819565,1.22670964,71092.0,71091.0,0.002]
[1717551819792,1.50803464,71092.0,71091.0,0.002]
[1717551820630,1.55112136,71092.0,71091.0,0.002]
[1717551821643,1.50803464,71092.0,71091.0,0.002]
[1717551822709,1.56269031,71092.0,71091.0,0.003]
[1717551823178,1.50803464,71092.0,71091.0,0.003]
[1717551824252,1.28319279,71092.0,71091.0,0.003]
[1717551824473,1.20370964,71092.0,71091.0,0.003]
[1717551825892,1.22670964,71092.0,71091.0,0.003]
[1717551826136,1.26979636,71092.0,71091.0,0.003]
[1717551827208,1.22670964,71092.0,71091.0,0.003]
[1717551827627,1.55112136,71092.0,71091.0,0.003]
[1717551828039,1.58751779,71092.0,71091.0,0.003]
[1717551828687,1.7163114,71092.0,71091.0,0.004]
[1717551828902,1.7023114,71092.0,71091.0,0.003]
[1717551829141,1.67051779,71092.0,71091.0,0.002]
[1717551829375,1.70138148,71092.0,71091.0,0.003]
[1717551829585,1.71538148,71092.0,71091.0,0.004]
[1717551830014,1.70138148,71092.0,71091.0,0.003]
[1717551830233,0.951092,71084.0,71083.0,0.009471]
[1717551830469,1.29799408,71084.0,71083.0,0.009471]
[1717551831974,0.73528008,71084.0,71083.0,0.009471]
[1717551832198,0.98224065,71084.0,71083.0,0.009471]
[1717551832420,1.01817591,71084.0,71083.0,0.009471]
[1717551832838,0.98224065,71084.0,71083.0,0.009471]
[1717551833060,1.26359765,71084.0,71083.0,0.009471]
[1717551834886,1.22051093,71084.0,71083.0,0.009471]
[1717551835104,1.3656288,71084.0,71083.0,0.009471]
[1717551835320,1.22051093,71084.0,71083.0,0.009471]
[1717551835937,1.28891093,71084.0,71083.0,0.009471]
[1717551840437,1.62659993,71084.0,71083.0,0.009471]
[1717551840637,1.66159993,71084.0,71083.0,0.009471]
[1717551840856,1.68723673,71084.0,71083.0,0.009471]
[1717551841057,1.808524,71084.0,71083.0,0.009471]
[1717551841489,1.68723673,71084.0,71083.0,0.009471]
[1717551841688,1.68523673,71084.0,71083.0,0.009471]
[1717551841899,0.1,71077.0,71073.0,0.00948199]
[1717551842121,1.57936293,71077.0,71076.0,1e-08]
[1717551842325,1.67936293,71077.0,71076.0,1e-08]
[1717551842537,1.83019,71077.0,71076.0,1e-08]
[1717551842999,1.72244965,71077.0,71076.0,1e-08]
[1717551843219,1.73844965,71077.0,71076.0,0.00100001]
[1717551843851,1.65604965,71077.0,71076.0,1e-08]
[1717551844549,1.232586,71074.0,71073.0,0.004102]
[1717551844763,1.54309165,71074.0,71073.0,0.004102]
[1717551846047,1.55709165,71074.0,71073.0,0.005102]
[1717551846248,1.52800493,71074.0,71073.0,0.005102]
[1717551850246,0.78529965,71074.0,71073.0,0.005102]
[1717551850450,0.56081693,71074.0,71073.0,0.454702]
[1717551850661,0.31311693,71074.0,71073.0,0.454702]
[1717551851291,0.29911693,71074.0,71073.0,0.453702]
[1717551851500,0.28511693,71074.0,71073.0,0.453702]
[1717551851715,0.28611693,71074.0,71073.0,0.460702]
[1717551852132,0.28511693,71074.0,71073.0,0.453702]
[1717551852333,0.28611693,71074.0,71073.0,0.453702]
[1717551852543,0.28711693,71074.0,71073.0,0.460702]
[1717551852761,0.28611693,71074.0,71073.0,0.460702]
[1717551852976,0.12051693,71074.0,71073.0,0.460702]
[1717551853851,0.12051693,71074.0,71073.0,0.240702]
[1717551853852,0.26121493,71074.0,71073.0,0.240702]
[1717551854356,0.36121493,71074.0,71073.0,0.240702]
[1717551854840,0.38421493,71074.0,71073.0,0.240702]
[1717551855044,0.28421493,71074.0,71073.0,0.240702]
[1717551855472,0.28421493,71074.0,71073.0,0.460702]
[1717551855677,0.28421493,71074.0,71073.0,0.450702]
[1717551855888,0.28421493,71074.0,71073.0,0.240702]
[1717551856093,0.53201493,71074.0,71073.0,0.011102]
[1717551856294,0.63201493,71074.0,71073.0,0.011102]
[1717551856711,1.19480693,71074.0,71073.0,0.011102]
[1717551857132,0.91341093,71074.0,71073.0,0.011102]
[1717551857343,1.19463763,71074.0,71073.0,0.011102]
[1717551857767,1.19363763,71074.0,71073.0,0.011102]
[1717551857976,1.19363763,71074.0,71073.0,0.004102]
[1717551857977,1.19263763,71074.0,71073.0,0.004102]
[1717551858419,1.19263763,71074.0,71073.0,0.008102]
[1717551858976,1.19263763,71074.0,71073.0,0.004102]
[1717551859179,0.92524163,71074.0,71073.0,0.004102]
[1717551859411,1.22063763,71074.0,71073.0,0.005102]
[1717551859644,0.92524163,71074.0,71073.0,0.005102]
[1717551859846,0.91124163,71074.0,71073.0,0.004102]
[1717551860247,0.62984563,71074.0,71073.0,0.004102]
[1717551860454,0.25904563,71074.0,71073.0,0.261702]
[1717551860685,0.25904563,71074.0,71073.0,0.241702]
[1717551860931,0.25904563,71074.0,71073.0,0.461702]
[1717551861120,0.27304563,71074.0,71073.0,0.241702]
[1717551861317,0.25904563,71074.0,71073.0,0.461702]
[1717551861524,0.27304563,71074.0,71073.0,0.262702]
[1717551861734,0.27704563,71074.0,71073.0,0.242702]
[1717551861942,0.35904563,71074.0,71073.0,0.261702]
[1717551862194,0.35904563,71074.0,71073.0,0.461702]
[1717551862405,0.36104563,71074.0,71073.0,0.468702]
[1717551862828,0.36004563,71074.0,71073.0,0.461702]
[1717551863180,0.26204563,71074.0,71073.0,0.468702]
[1717551864576,0.26004563,71074.0,71073.0,0.468702]
[1717551864935,0.26104563,71074.0,71073.0,0.469702]
[1717551865147,0.26004563,71074.0,71073.0,0.248702]
[1717551865340,0.25904563,71074.0,71073.0,0.261702]
[1717551865552,0.26004563,71074.0,71073.0,0.242702]
[1717551865760,0.26004563,71074.0,71073.0,0.249702]
[1717551865967,0.26004563,71074.0,71073.0,0.469702]
[1717551866172,0.26004563,71074.0,71073.0,0.462702]
[1717551866497,0.26004563,71074.0,71073.0,0.470702]
[1717551866653,0.26104563,71074.0,71073.0,0.470702]
[1717551867077,0.26104563,71074.0,71073.0,0.250702]
[1717551867284,0.26104563,71074.0,71073.0,0.173602]
[1717551867488,0.28404563,71074.0,71073.0,0.173602]
[1717551867684,0.56544163,71074.0,71073.0,0.173602]
[1717551869291,0.81324163,71074.0,71073.0,0.013102]
[1717551869472,0.53184563,71074.0,71073.0,0.013102]
[1717551869678,0.43184563,71074.0,71073.0,0.013102]
[1717551869885,0.43184563,71074.0,71073.0,0.033102]
[1717551870090,0.28404563,71074.0,71073.0,0.233102]
[1717551870293,0.28404563,71074.0,71073.0,0.463802]
[1717551870500,0.28404563,71074.0,71073.0,0.243802]
[1717551870698,0.28404563,71074.0,71073.0,0.263802]
[1717551871399,0.28404563,71074.0,71073.0,0.463802]
[1717551874430,0.28404563,71074.0,71073.0,0.243802]
[1717551874908,0.56544163,71074.0,71073.0,0.243802]
[1717551875766,0.28404563,71074.0,71073.0,0.243802]
[1717551875998,0.56544163,71074.0,71073.0,0.243802]
[1717551876477,0.56544163,71074.0,71073.0,0.167802]
[1717551876678,1.09463763,71074.0,71073.0,0.013102]
[1717551877764,0.71224163,71074.0,71073.0,0.005102]
[1717551877963,0.71124163,71074.0,71073.0,0.004102]
[1717551878190,0.81224163,71074.0,71073.0,0.012102]
[1717551878326,0.71324163,71074.0,71073.0,0.012102]
[1717551878522,0.81124163,71074.0,71073.0,0.004102]
[1717551878930,0.81324163,71074.0,71073.0,0.011102]
[1717551879345,0.81324163,71074.0,71073.0,0.004102]
[1717551879346,0.81124163,71074.0,71073.0,0.004102]
[1717551879529,0.81224163,71074.0,71073.0,0.004102]
[1717551879731,0.81324163,71074.0,71073.0,0.010102]
[1717551880318,0.28404563,71074.0,71073.0,0.010102]
[1717551880494,0.56544163,71074.0,71073.0,0.010102]
[1717551881083,1.09463763,71074.0,71073.0,0.010102]
[1717551881289,1.47603363,71074.0,71073.0,0.010102]
[1717551881490,1.55793363,71074.0,71073.0,0.010102]
[1717551881936,1.55793363,71074.0,71065.0,9.9e-07]
[1717551881937,1.422798,71066.0,71065.0,9.9e-07]
[1717551882073,0.669972,71061.0,71060.0,0.009493]
[1717551882303,0.140741,71052.0,71045.0,0.1532]
[1717551882570,0.38515993,71052.0,71048.0,0.0781]
[1717551882774,0.48515993,71052.0,71048.0,0.0781]
[1717551882977,0.50815993,71052.0,71048.0,0.0781]
[1717551883186,0.50815993,71052.0,71049.0,0.02]
[1717551883328,0.50815993,71052.0,71048.0,0.0781]
[1717551883554,0.79964293,71052.0,71051.0,0.003]
[1717551884404,0.94744293,71052.0,71051.0,0.003]
[1717551885360,0.93744293,71052.0,71051.0,0.002]
[1717551885771,0.95044293,71052.0,71051.0,0.002]
[1717551885969,0.93844293,71052.0,71051.0,0.002]
[1717551886178,0.93744293,71052.0,71051.0,0.002]
[1717551886388,0.94844293,71052.0,71051.0,0.002]
[1717551886593,0.95844293,71052.0,71051.0,0.002]
[1717551887134,0.94844293,71052.0,71051.0,0.002]
[1717551887340,0.95544293,71052.0,71051.0,0.002]
[1717551887699,0.94444293,71052.0,71051.0,0.002]
[1717551888160,0.95344293,71052.0,71051.0,0.002]
[1717551888364,0.94444293,71052.0,71051.0,0.002]
[1717551888572,1.22592593,71052.0,71051.0,0.0796]
[1717551888825,1.21892593,71052.0,71051.0,0.0796]
[1717551889783,1.22792593,71052.0,71051.0,0.0796]
[1717551889992,0.94644293,71052.0,71051.0,0.0796]
[1717551890412,0.68964293,71052.0,71051.0,0.0796]
[1717551890610,0.38515993,71052.0,71051.0,0.2996]
[1717551890810,0.39415993,71052.0,71051.0,0.2996]
[1717551891218,0.39415993,71052.0,71051.0,0.0796]
[1717551891417,0.66664293,71052.0,71051.0,0.0796]
[1717551891654,0.66664293,71052.0,71051.0,0.2996]
[1717551892707,0.66664293,71052.0,71051.0,0.0796]
[1717551893078,0.66664293,71052.0,71051.0,0.2996]
[1717551893819,0.66764293,71052.0,71051.0,0.2996]
[1717551894547,0.66764293,71052.0,71051.0,0.4629]
[1717551894548,0.38615993,71052.0,71051.0,0.4629]
[1717551895544,0.38515993,71052.0,71051.0,0.4629]
[1717551895839,0.38615993,71052.0,71051.0,0.4629]
[1717551896318,0.66764293,71052.0,71051.0,0.2429]
[1717551896482,0.66664293,71052.0,71051.0,0.2429]
[1717551896693,0.66764293,71052.0,71051.0,0.2629]
[1717551897304,0.66664293,71052.0,71051.0,0.2629]
[1717551897877,0.66764293,71052.0,71051.0,0.2629]
[1717551898481,0.66764293,71052.0,71051.0,0.2429]
[1717551898711,1.07212593,71052.0,71051.0,0.002]
[1717551899530,1.07112593,71052.0,71051.0,0.002]
[1717551900386,1.21892593,71052.0,71051.0,0.002]
[1717551900590,1.22892593,71052.0,71051.0,0.002]
[1717551901044,1.21892593,71052.0,71051.0,0.002]
[1717551901259,1.22992593,71052.0,71051.0,0.002]
[1717551901490,1.21892593,71052.0,71051.0,0.002]
[1717551901922,1.23292593,71052.0,71051.0,0.002]
[1717551902308,1.24392593,71052.0,71051.0,0.002]
[1717551902891,1.23292593,71052.0,71051.0,0.002]
[1717551903268,1.24692593,71052.0,71051.0,0.002]
[1717551903668,1.23292593,71052.0,71051.0,0.002]
[1717551904058,1.22992593,71052.0,71051.0,0.002]
[1717551904260,1.52340893,71052.0,71051.0,0.002]
[1717551904670,1.51140893,71052.0,71051.0,0.002]
[1717551904908,1.52440893,71052.0,71051.0,0.002]
[1717551905364,1.22992593,71052.0,71051.0,0.002]
[1717551905568,0.98212593,71052.0,71051.0,0.222]
[1717551905733,0.39715993,71052.0,71051.0,0.4496]
[1717551905938,0.38515993,71052.0,71051.0,0.4496]
[1717551906370,0.39915993,71052.0,71051.0,0.4496]
[1717551906806,0.38515993,71052.0,71051.0,0.4496]
[1717551907179,0.38615993,71052.0,71051.0,0.4506]
[1717551911808,0.28615993,71052.0,71051.0,0.4506]
[1717551912022,0.14541893,71052.0,71051.0,0.5606]
[1717551912716,0.14541893,71052.0,71051.0,0.701343]